bitfinex/quotes_BTCUSD_20230111
["timestamp","ask_amount","ask_price","bid_price","bid_amount"]
[1673467149833,0.001,17545.0,17544.0,2.25865853]
[1673467150575,0.001,17545.0,17544.0,3.5677997]
[1673467151073,0.001,17545.0,17544.0,3.86351839]
[1673467151837,0.001,17545.0,17544.0,4.20208515]
[1673467152106,0.001,17545.0,17544.0,4.33286553]
[1673467152345,0.00093622,17545.0,17544.0,5.0907432]
[1673467152837,0.00093622,17545.0,17544.0,4.50232746]
[1673467153094,0.00093622,17545.0,17544.0,5.0907432]
[1673467153873,0.00093622,17545.0,17544.0,4.50232746]
[1673467154129,0.00093622,17545.0,17544.0,4.58658154]
[1673467154375,0.00093622,17545.0,17544.0,5.2558947]
[1673467154660,0.00093622,17545.0,17544.0,5.30672674]
[1673467155194,0.00093622,17545.0,17544.0,6.22644698]
[1673467155451,0.0008426,17545.0,17544.0,7.09873972]
[1673467157156,0.0008426,17545.0,17544.0,7.60745417]
[1673467157928,0.0008426,17545.0,17544.0,6.22596377]
[1673467158980,0.0008426,17545.0,17544.0,7.09804546]
[1673467159244,0.0008426,17545.0,17544.0,7.60712971]
[1673467159782,0.0008426,17545.0,17544.0,6.22572976]
[1673467160055,0.001,17546.0,17545.0,0.3691574]
[1673467160325,0.001,17546.0,17545.0,4.80891561]
[1673467160573,0.001,17546.0,17545.0,5.326349]
[1673467160839,0.06304467,17549.0,17545.0,6.70746091]
[1673467161124,0.06304467,17549.0,17548.0,0.59376422]
[1673467161393,0.06304467,17549.0,17548.0,4.48677028]
[1673467161662,0.01372828,17549.0,17548.0,5.60914876]
[1673467162172,0.01372828,17549.0,17548.0,5.61314876]
[1673467162479,0.01372828,17549.0,17548.0,5.60914876]
[1673467162745,0.01372828,17549.0,17548.0,4.08804412]
[1673467163025,0.01372828,17549.0,17548.0,3.414699]
[1673467163553,0.01372828,17549.0,17548.0,4.72067763]
[1673467164107,0.01372828,17549.0,17548.0,4.85967763]
[1673467164365,0.01372828,17549.0,17548.0,4.99867763]
[1673467164617,0.01372828,17549.0,17548.0,4.99836014]
[1673467164872,0.01372828,17549.0,17548.0,4.72036014]
[1673467165134,0.01372828,17549.0,17548.0,6.29605147]
[1673467165390,0.01372828,17549.0,17548.0,5.11483052]
[1673467165894,0.01372828,17549.0,17548.0,5.15652021]
[1673467166537,0.01372828,17549.0,17548.0,4.86103444]
[1673467166713,0.01372828,17549.0,17548.0,4.69149344]
[1673467166985,0.01372828,17549.0,17548.0,4.1030777]
[1673467167486,0.01372828,17549.0,17548.0,3.5332127]
[1673467169371,0.91570334,17549.0,17548.0,0.709865]
[1673467169628,0.91570334,17549.0,17548.0,0.14]
[1673467170139,0.91570334,17549.0,17548.0,0.13006403]
[1673467170413,1.27290134,17549.0,17548.0,0.12007941]
[1673467170967,1.27290134,17549.0,17548.0,0.11364793]
[1673467170968,2.14273434,17549.0,17548.0,0.11364793]
[1673467171221,2.14273434,17549.0,17546.0,0.52395442]
[1673467171473,0.1615,17547.0,17546.0,0.52395442]
[1673467171763,0.518698,17547.0,17546.0,0.52395442]
[1673467172288,0.1615,17547.0,17546.0,0.52395442]
[1673467173049,0.1615,17547.0,17546.0,0.66295442]
[1673467173310,0.1614334,17547.0,17546.0,1.09388442]
[1673467173557,0.1644334,17547.0,17546.0,1.53288442]
[1673467174076,0.1644334,17547.0,17546.0,1.80281442]
[1673467174858,0.003,17547.0,17546.0,2.68124442]
[1673467175107,0.003,17547.0,17546.0,3.33844242]
[1673467175875,0.003,17547.0,17546.0,2.98124442]
[1673467176602,0.003,17547.0,17546.0,3.33844242]
[1673467177103,0.003,17547.0,17546.0,3.50798342]
[1673467177359,0.003,17547.0,17546.0,3.33844242]
[1673467177603,0.003,17547.0,17546.0,2.98124442]
[1673467178100,0.003,17547.0,17546.0,3.33844242]
[1673467178352,0.003,17547.0,17546.0,3.57244474]
[1673467178597,0.003,17547.0,17546.0,5.00824873]
[1673467179118,0.003,17547.0,17546.0,5.17800157]
[1673467179671,0.003,17547.0,17546.0,5.94159616]
[1673467179887,0.003,17547.0,17546.0,6.10399616]
[1673467180134,0.003,17547.0,17546.0,6.10366995]
[1673467180382,0.003,17547.0,17546.0,6.10370574]
[1673467182377,0.003,17547.0,17546.0,5.93389649]
[1673467182621,0.003,17547.0,17546.0,6.10370574]
[1673467183117,0.003,17547.0,17546.0,3.58913806]
[1673467183366,0.003,17547.0,17546.0,4.43186519]
[1673467183614,0.003,17547.0,17546.0,5.02479955]
[1673467183855,0.003,17547.0,17546.0,5.66404733]
[1673467184106,0.003,17547.0,17546.0,5.61321529]
[1673467184383,0.003,17547.0,17546.0,4.43186519]
[1673467184631,0.003,17547.0,17546.0,3.88913806]
[1673467185379,0.003,17547.0,17546.0,3.29519039]
[1673467185645,0.003,17547.0,17546.0,3.12561712]
[1673467186146,0.01865013,17547.0,17546.0,3.12561712]
[1673467187186,0.01865013,17547.0,17546.0,2.82561712]
[1673467187669,0.01865013,17547.0,17546.0,3.29519039]
[1673467189203,0.01865013,17547.0,17546.0,4.73093548]
[1673467189720,0.01865013,17547.0,17546.0,4.90036563]
[1673467192695,0.01865013,17547.0,17546.0,5.07017154]
[1673467193180,0.01865013,17547.0,17546.0,5.65858728]
[1673467193429,0.01865013,17547.0,17546.0,5.31958386]
[1673467194204,0.01865013,17547.0,17546.0,5.65919342]
[1673467194457,0.01865013,17547.0,17546.0,5.31958386]
[1673467194698,0.01865013,17547.0,17546.0,5.65916481]
[1673467195708,0.01865013,17547.0,17546.0,4.65125674]
[1673467196254,0.01865013,17547.0,17546.0,5.00845474]
[1673467197003,0.01865013,17547.0,17546.0,4.58433744]
[1673467197496,0.01856777,17547.0,17546.0,4.58433744]
[1673467198752,0.01856777,17547.0,17546.0,5.30128585]
[1673467199762,0.01856777,17547.0,17546.0,5.72571537]
[1673467200268,0.01503777,17547.0,17546.0,5.72571537]
[1673467200525,0.01503777,17547.0,17546.0,5.00326796]
[1673467200782,0.01503777,17547.0,17546.0,4.57883844]
[1673467201034,0.01503777,17547.0,17546.0,5.89571407]
[1673467201288,0.01503777,17547.0,17546.0,5.22361815]
[1673467201289,0.013534,17547.0,17546.0,5.22361815]
[1673467201568,0.013534,17547.0,17546.0,5.22213315]
[1673467202137,0.013534,17547.0,17546.0,5.89411991]
[1673467202868,0.013534,17547.0,17546.0,7.09138433]
[1673467203124,0.013534,17547.0,17546.0,7.07961335]
[1673467203631,0.013534,17547.0,17546.0,7.36457335]
[1673467203879,6.441e-05,17548.0,17547.0,0.30377604]
[1673467204141,6.441e-05,17548.0,17547.0,6.58741333]
[1673467204401,6.441e-05,17548.0,17547.0,5.87705899]
[1673467204710,6.441e-05,17548.0,17547.0,5.92789103]
[1673467205185,0.00206441,17548.0,17547.0,6.04189103]
[1673467205688,0.00206441,17548.0,17547.0,6.04139103]
[1673467206189,6.441e-05,17548.0,17547.0,5.92739103]
[1673467206437,6.441e-05,17548.0,17547.0,6.01455899]
[1673467206438,0.00306441,17548.0,17547.0,6.01455899]
[1673467207471,6.005e-05,17548.0,17547.0,6.01455899]
[1673467207737,0.01384228,17549.0,17548.0,0.84497241]
[1673467207738,0.01089797,17549.0,17548.0,0.84497241]
[1673467208004,0.01089797,17549.0,17548.0,4.13185681]
[1673467208258,0.01089797,17549.0,17548.0,3.77465881]
[1673467208529,0.01089797,17549.0,17548.0,3.60505371]
[1673467208778,0.00998744,17549.0,17548.0,4.29112469]
[1673467209035,0.00998744,17549.0,17548.0,4.64832269]
[1673467209290,0.00998744,17549.0,17548.0,4.29962469]
[1673467209560,0.01298744,17549.0,17548.0,4.43762469]
[1673467209836,0.01298744,17549.0,17548.0,5.09482269]
[1673467210120,0.00998744,17549.0,17548.0,4.95682269]
[1673467210360,0.00998744,17549.0,17548.0,4.93416643]
[1673467210615,0.01298744,17549.0,17548.0,4.71800442]
[1673467210875,0.01298744,17549.0,17548.0,2.96424204]
[1673467211129,0.01298744,17549.0,17548.0,3.21363646]
[1673467211399,0.01298744,17549.0,17548.0,4.40461047]
[1673467211634,0.01298744,17549.0,17548.0,4.70461047]
[1673467211850,0.01298744,17549.0,17548.0,4.65303106]
[1673467212145,0.01298744,17549.0,17548.0,4.35303106]
[1673467212405,0.01298744,17549.0,17548.0,3.21345565]
[1673467212675,0.01298744,17549.0,17548.0,4.40447773]
[1673467212939,0.01298744,17549.0,17548.0,5.23128083]
[1673467214726,0.01298744,17549.0,17548.0,5.65009207]
[1673467214974,0.01289761,17549.0,17548.0,5.98944819]
[1673467215233,0.01289761,17549.0,17548.0,5.06167633]
[1673467215738,0.01289761,17549.0,17548.0,5.29839771]
[1673467215989,0.01289761,17549.0,17548.0,5.23158997]
[1673467216251,0.01289761,17549.0,17548.0,4.87439555]
[1673467217520,0.01289761,17549.0,17548.0,5.23159355]
[1673467219324,0.01289761,17549.0,17548.0,5.40105801]
[1673467219571,0.01289761,17549.0,17548.0,5.06167633]
[1673467219819,0.01289761,17549.0,17548.0,5.65009207]
[1673467220069,0.01289761,17549.0,17548.0,5.98949871]
[1673467220574,0.01289761,17549.0,17548.0,5.65009207]
[1673467221595,0.03129222,17549.0,17548.0,5.65009207]
[1673467222886,0.03129222,17549.0,17548.0,5.06167633]
[1673467223140,0.03129222,17549.0,17548.0,5.40101946]
[1673467223904,0.03129222,17549.0,17548.0,4.87432547]
[1673467224156,0.03129222,17549.0,17548.0,1.45591983]
[1673467225178,0.03129222,17549.0,17548.0,1.28623]
[1673467225466,0.01289761,17549.0,17548.0,1.45591983]
[1673467225715,0.55845871,17549.0,17548.0,1.28623]
[1673467225971,0.55845871,17549.0,17548.0,0.707865]
[1673467226744,0.55845871,17549.0,17548.0,1.44741983]
[1673467226995,0.55845871,17549.0,17548.0,0.87755483]
[1673467227504,0.57360947,17549.0,17548.0,1.44809413]
[1673467228298,0.02804837,17549.0,17548.0,4.48424202]
[1673467228550,0.02804837,17549.0,17548.0,5.01109332]
[1673467229334,0.02804837,17549.0,17548.0,4.65389532]
[1673467229564,0.02804837,17549.0,17548.0,5.18058931]
[1673467229816,0.02804837,17549.0,17548.0,5.01116255]
[1673467230065,0.02804837,17549.0,17548.0,4.82339131]
[1673467230312,0.02804837,17549.0,17548.0,4.65396367]
[1673467230823,0.02804837,17549.0,17548.0,4.82339131]
[1673467231336,0.02804837,17549.0,17548.0,4.82409131]
[1673467233387,0.02804837,17549.0,17548.0,5.18128931]
[1673467233647,0.02804837,17549.0,17548.0,4.29553811]
[1673467234154,0.02804837,17549.0,17548.0,5.0039998]
[1673467235415,0.02804837,17549.0,17548.0,5.65410756]
[1673467235916,0.02804837,17549.0,17548.0,5.14515673]
[1673467236174,0.02804837,17549.0,17548.0,5.70497508]
[1673467236421,0.02804837,17549.0,17548.0,5.65410756]
[1673467236676,0.02798823,17549.0,17548.0,5.59794747]
[1673467236929,0.02798823,17549.0,17548.0,5.64881499]
[1673467237427,0.01283747,17549.0,17548.0,5.64881499]
[1673467237918,0.01133073,17549.0,17548.0,5.64881499]
[1673467239433,0.01133073,17549.0,17548.0,6.32310667]
[1673467239686,0.01133073,17549.0,17548.0,5.64881499]
[1673467240472,0.01133073,17549.0,17548.0,5.59794747]
[1673467242787,0.01133073,17549.0,17548.0,6.32014529]
[1673467243738,0.01133073,17549.0,17548.0,4.88948578]
[1673467244007,0.01133073,17549.0,17548.0,6.19884632]
[1673467244260,0.01133073,17549.0,17548.0,5.59079053]
[1673467244768,0.01133073,17549.0,17548.0,5.2983397]
[1673467245021,0.00760312,17549.0,17548.0,6.38249268]
[1673467245285,0.00760312,17549.0,17548.0,7.76091023]
[1673467245589,0.01912471,17549.0,17548.0,7.01010426]
[1673467245814,0.00091871,17549.0,17548.0,7.01010426]
[1673467246063,0.11224234,17550.0,17549.0,0.3]
[1673467246327,0.11224234,17550.0,17549.0,4.6725364]
[1673467246573,0.06331618,17550.0,17549.0,6.09937096]
[1673467246846,0.06331618,17550.0,17549.0,6.85008455]
[1673467247350,0.06331618,17550.0,17549.0,6.09937096]
[1673467247598,0.01370896,17551.0,17550.0,0.3]
[1673467247852,0.01077956,17551.0,17550.0,5.17811519]
[1673467248158,0.01077956,17551.0,17550.0,5.22508917]
[1673467248435,5.6e-07,17551.0,17550.0,6.09258937]
[1673467248686,0.01558506,17552.0,17550.0,6.37747937]
[1673467248947,1.50803953,17559.0,17551.0,4.03851013]
[1673467249214,0.04816565,17555.0,17554.0,0.5927326]
[1673467249478,0.01966245,17558.0,17554.0,5.00810717]
[1673467249749,0.39066527,17558.0,17557.0,0.16914079]
[1673467250005,0.39066527,17558.0,17555.0,1.97303936]
[1673467250006,0.37712725,17556.0,17555.0,0.73875279]
[1673467250257,0.01966245,17558.0,17555.0,1.147719]
[1673467250258,0.1076,17557.0,17555.0,1.147719]
[1673467250520,0.1076,17557.0,17556.0,0.0085]
[1673467250521,0.49077045,17557.0,17556.0,0.0085]
[1673467250826,0.39441986,17558.0,17556.0,1.14771]
[1673467251089,0.51311868,17557.0,17556.0,1.14771]
[1673467251349,0.51311868,17557.0,17554.0,1.13826284]
[1673467251350,0.36747086,17556.0,17554.0,1.13826284]
[1673467251601,0.357198,17555.0,17554.0,1.13826284]
[1673467251857,0.1082,17555.0,17554.0,0.56859784]
[1673467252166,0.1082,17555.0,17554.0,0.52038675]
[1673467252444,0.1082,17555.0,17553.0,0.869673]
[1673467252718,0.1081,17556.0,17555.0,0.72483344]
[1673467253234,0.465298,17556.0,17555.0,0.72483344]
[1673467253517,0.465298,17556.0,17554.0,0.103]
[1673467253775,0.143907,17555.0,17554.0,0.7782241]
[1673467254046,0.1082,17555.0,17554.0,0.7867241]
[1673467254299,0.465398,17555.0,17554.0,0.7867241]
[1673467254549,0.1082,17555.0,17554.0,0.7867241]
[1673467255080,0.1082,17555.0,17554.0,0.6837241]
[1673467255590,0.1076,17557.0,17554.0,1.78851789]
[1673467255855,0.01966245,17558.0,17555.0,1.25195394]
[1673467256134,0.01966245,17558.0,17556.0,1.796408]
[1673467256414,0.01966245,17558.0,17557.0,0.0085]
[1673467256679,0.01966245,17558.0,17557.0,0.63903824]
[1673467256943,0.01966245,17558.0,17557.0,1.50861124]
[1673467257206,0.01966245,17558.0,17557.0,2.07818424]
[1673467257456,0.01966245,17558.0,17557.0,2.37818424]
[1673467258222,0.01966245,17558.0,17557.0,2.38318424]
[1673467258477,0.02084154,17564.0,17558.0,0.3]
[1673467259022,0.02084154,17564.0,17559.0,3.5097865]
[1673467259028,0.21902103,17564.0,17560.0,0.3]
[1673467259284,0.53263288,17566.0,17561.0,2.29769241]
[1673467259535,0.99423635,17568.0,17562.0,2.94161305]
[1673467259536,0.0138071,17568.0,17562.0,2.94161305]
[1673467259796,0.5949837,17571.0,17564.0,0.569333]
[1673467259797,0.16979326,17571.0,17564.0,0.569333]
[1673467260066,0.37613574,17572.0,17565.0,1.07944909]
[1673467260067,0.3,17570.0,17565.0,1.07944909]
[1673467260335,0.3,17570.0,17566.0,0.24617789]
[1673467260600,0.16977628,17573.0,17568.0,0.3]
[1673467260852,0.568982,17576.0,17569.0,0.78615907]
[1673467260853,0.6001,17576.0,17569.0,0.78615907]
[1673467261116,0.89358368,17581.0,17570.0,1.10707005]
[1673467261391,0.568777,17582.0,17571.0,1.15626335]
[1673467261648,3.62328673,17598.0,17572.0,1.96296205]
[1673467261909,3.62328673,17598.0,17582.0,0.23767789]
[1673467261910,1.71398871,17592.0,17582.0,0.23767789]
[1673467262174,1.71398871,17592.0,17575.0,0.42206027]
[1673467262175,0.13707851,17579.0,17575.0,0.42206027]
[1673467262435,0.13707851,17579.0,17576.0,1.52326831]
[1673467262436,0.23767789,17578.0,17576.0,1.52326831]
[1673467262703,0.13707851,17579.0,17578.0,0.71303366]
[1673467263015,0.568741,17583.0,17582.0,0.012]
[1673467263278,0.568741,17583.0,17578.0,0.71303366]
[1673467263279,2.05727406,17583.0,17579.0,0.67095544]
[1673467263532,0.6001,17581.0,17578.0,0.71303366]
[1673467263785,0.6001,17579.0,17578.0,0.70809993]
[1673467264091,1.74998367,17579.0,17574.0,0.34172406]
[1673467264636,1.769009,17578.0,17576.0,0.014]
[1673467264645,1.769009,17578.0,17574.0,0.66868957]
[1673467264881,1.39371389,17577.0,17570.0,0.16580464]
[1673467265144,0.53767789,17576.0,17571.0,0.67093122]
[1673467265437,0.23767789,17575.0,17574.0,0.005]
[1673467265692,0.94823187,17577.0,17573.0,1.345]
[1673467265947,0.94823187,17577.0,17574.0,0.67001458]
[1673467265948,0.34813187,17577.0,17574.0,0.67001458]
[1673467266260,0.34813187,17577.0,17574.0,0.97001458]
[1673467266261,0.04813187,17577.0,17574.0,0.97001458]
[1673467267078,0.09443416,17577.0,17575.0,2.48738377]
[1673467267331,0.09443416,17577.0,17576.0,0.66709621]
[1673467267578,0.126,17577.0,17576.0,0.85263883]
[1673467267839,0.126,17577.0,17576.0,1.15263883]
[1673467268140,0.252,17577.0,17576.0,1.74642785]
[1673467268441,0.126,17577.0,17576.0,1.74642785]
[1673467268696,0.18634802,17579.0,17578.0,0.71177606]
[1673467268946,0.18634802,17579.0,17578.0,1.37234768]
[1673467269198,0.18634802,17579.0,17578.0,2.71734768]
[1673467269199,0.13707851,17579.0,17578.0,2.71734768]
[1673467269471,0.13707851,17579.0,17578.0,2.86837519]
[1673467270003,0.13707851,17579.0,17578.0,3.74576719]
[1673467270004,0.13692851,17579.0,17578.0,3.74576719]
[1673467270280,0.13692851,17579.0,17578.0,4.41346068]
[1673467270567,0.04958586,17582.0,17579.0,0.27385702]
[1673467270829,0.04958586,17582.0,17579.0,1.23507698]
[1673467271097,0.58754654,17584.0,17580.0,0.66121996]
[1673467271098,0.01884154,17584.0,17580.0,0.66121996]
[1673467271359,0.04873384,17583.0,17579.0,2.85943237]
[1673467271627,0.01884154,17584.0,17579.0,0.28185702]
[1673467271628,0.23767789,17582.0,17579.0,0.28185702]
[1673467271900,0.23767789,17582.0,17579.0,0.26385702]
[1673467272241,0.32400605,17583.0,17580.0,0.011]
[1673467272513,0.37310721,17583.0,17580.0,0.011]
[1673467272759,1.66666308,17583.0,17580.0,0.011]
[1673467273016,0.255936,17582.0,17580.0,0.011]
[1673467273271,0.3,17581.0,17580.0,0.011]
[1673467273564,0.3,17581.0,17580.0,0.0001]
[1673467273565,2.61396508,17581.0,17580.0,0.0001]
[1673467273821,0.9001,17580.0,17579.0,0.26385702]
[1673467274071,0.9001,17579.0,17578.0,0.71177606]
[1673467274317,1.156036,17579.0,17578.0,7.606e-05]
[1673467274569,2.024896,17579.0,17578.0,7.606e-05]
[1673467274888,2.26257389,17579.0,17578.0,7.606e-05]
[1673467275136,2.61884367,17579.0,17578.0,7.606e-05]
[1673467275396,3.08080472,17579.0,17578.0,7.606e-05]
[1673467275642,3.64966472,17579.0,17578.0,7.606e-05]
[1673467275899,1.124796,17579.0,17578.0,7.606e-05]
[1673467276695,1.693656,17579.0,17578.0,7.606e-05]
[1673467276940,1.822656,17579.0,17578.0,0.00507606]
[1673467277215,1.7655607,17579.0,17578.0,7.606e-05]
[1673467277480,3.64454437,17579.0,17578.0,0.00507606]
[1673467277744,3.64454437,17579.0,17578.0,7.606e-05]
[1673467278006,3.64454437,17579.0,17573.0,0.00015]
[1673467278007,0.6001,17577.0,17573.0,0.00015]
[1673467278275,1.37555789,17577.0,17574.0,1.345]
[1673467278522,0.255936,17576.0,17574.0,1.89429077]
[1673467278923,0.04781836,17577.0,17574.0,1.89429077]
[1673467279358,0.04796836,17577.0,17574.0,1.89429077]
[1673467279816,0.85457325,17577.0,17574.0,1.345]
[1673467280084,0.98657325,17577.0,17574.0,1.345]
[1673467280298,0.98125449,17577.0,17574.0,1.345]
[1673467280514,1.31782036,17577.0,17574.0,1.345]
[1673467280732,1.31782036,17577.0,17576.0,1.345]
[1673467280733,0.74889536,17577.0,17576.0,1.345]
[1673467280953,0.17996836,17577.0,17576.0,1.345]
[1673467281175,0.132,17577.0,17576.0,1.345]
[1673467281723,0.86892,17578.0,17576.0,1.345]
[1673467281991,0.134,17577.0,17576.0,1.345]
[1673467282245,1.27185,17577.0,17576.0,1.345]
[1673467282495,1.57185,17577.0,17576.0,1.345]
[1673467282775,0.3,17576.0,17575.0,1.345]
[1673467283038,0.868957,17576.0,17575.0,1.345]
[1673467283316,1.437914,17576.0,17575.0,1.345]
[1673467283567,1.432914,17576.0,17575.0,1.345]
[1673467283832,1.432914,17576.0,17573.0,2.00971272]
[1673467284099,1.432914,17576.0,17575.0,0.006]
[1673467284100,1.98714055,17576.0,17575.0,0.006]
[1673467284379,2.87435566,17576.0,17575.0,0.006]
[1673467284650,3.47445566,17576.0,17575.0,0.006]
[1673467284890,3.35445566,17576.0,17573.0,1.345]
[1673467285256,0.3,17575.0,17573.0,1.352]
[1673467285515,1.69398,17574.0,17573.0,1.345]
[1673467285772,2.307066,17574.0,17573.0,1.345]
[1673467286041,2.563002,17574.0,17573.0,1.345]
[1673467286298,2.907166,17574.0,17571.0,1.345]
[1673467286574,1.156036,17573.0,17571.0,1.345]
[1673467286837,0.255936,17572.0,17571.0,1.345]
[1673467287096,1.738263,17573.0,17572.0,0.511872]
[1673467287355,1.169186,17573.0,17572.0,0.511872]
[1673467287603,3.20124167,17573.0,17572.0,0.511872]
[1673467287905,3.62166864,17573.0,17572.0,0.511872]
[1673467288165,3.85934653,17573.0,17572.0,0.511872]
[1673467288416,3.73668568,17573.0,17572.0,0.511872]
[1673467288658,3.73668568,17573.0,17572.0,0.512872]
[1673467288659,3.81417716,17573.0,17572.0,0.512872]
[1673467289229,3.79537716,17573.0,17572.0,0.001072]
[1673467289494,0.00107,17572.0,17567.0,0.00015]
[1673467289756,0.5813,17570.0,17567.0,0.00015]
[1673467290018,0.5813,17568.0,17567.0,0.00015]
[1673467290268,2.25740989,17568.0,17567.0,0.00015]
[1673467290845,2.97118819,17568.0,17566.0,0.00208536]
[1673467291106,0.8813,17567.0,17566.0,0.00208536]
[1673467291361,2.37688461,17567.0,17566.0,0.00208536]
[1673467291612,2.73439313,17567.0,17566.0,0.00208536]
[1673467292459,0.3,17566.0,17565.0,1.34208536]
[1673467292705,1.738562,17566.0,17565.0,1.34208536]
[1673467292988,2.01986201,17566.0,17565.0,1.34208536]
[1673467293255,2.94492944,17566.0,17564.0,1.34208536]
[1673467293504,1.47524767,17565.0,17564.0,1.34208536]
[1673467293752,2.019926,17565.0,17564.0,1.34208536]
[1673467294012,2.319926,17565.0,17564.0,1.34208536]
[1673467294265,2.7071043,17565.0,17564.0,1.34208536]
[1673467294764,2.8421043,17565.0,17564.0,1.34208536]
[1673467295787,2.319926,17565.0,17564.0,1.34208536]
[1673467296045,2.384926,17565.0,17564.0,1.34208536]
[1673467296305,2.384926,17565.0,17564.0,1.34708536]
[1673467296556,2.40135244,17565.0,17564.0,1.34708536]
[1673467296804,2.99530011,17565.0,17564.0,1.34708536]
[1673467297051,3.9541832,17565.0,17564.0,1.34708536]
[1673467299617,3.9541832,17565.0,17564.0,1.35208536]
[1673467299870,3.8891832,17565.0,17564.0,1.35208536]
[1673467300120,4.0251832,17565.0,17564.0,1.35208536]
[1673467300371,3.8891832,17565.0,17564.0,1.35208536]
[1673467300627,4.0251832,17565.0,17564.0,1.35208536]
[1673467301406,4.00875676,17565.0,17564.0,1.35208536]
[1673467301667,3.87275676,17565.0,17564.0,1.35208536]
[1673467301950,3.87275676,17565.0,17564.0,1.35216175]
[1673467301951,2.019926,17565.0,17564.0,1.35216175]
[1673467302206,1.855926,17565.0,17564.0,1.35208536]
[1673467302701,0.136,17565.0,17564.0,1.35208536]
[1673467302951,0.136,17565.0,17564.0,1.35216175]
[1673467303208,0.136,17565.0,17564.0,1.35208536]
[1673467304562,0.705313,17565.0,17564.0,1.35208536]
[1673467305011,0.136,17565.0,17564.0,1.35216175]
[1673467305280,0.136,17565.0,17564.0,1.88921834]
[1673467305533,0.15242644,17565.0,17564.0,2.45856434]
[1673467305824,0.15242644,17565.0,17564.0,3.12398064]
[1673467306549,0.09051714,17565.0,17564.0,4.03411605]
[1673467306808,0.09051714,17565.0,17564.0,4.55301629]
[1673467307060,0.00015,17567.0,17566.0,0.27155141]
[1673467307324,0.00015,17567.0,17566.0,2.27378641]
[1673467307566,6e-05,17568.0,17566.0,3.71234841]
[1673467307822,6e-05,17568.0,17567.0,0.66014964]
[1673467308081,6e-05,17568.0,17567.0,1.80714764]
[1673467308333,6e-05,17568.0,17567.0,2.76373064]
[1673467308585,6e-05,17568.0,17567.0,3.25928791]
[1673467308846,6e-05,17568.0,17567.0,3.39928791]
[1673467309105,6e-05,17568.0,17567.0,2.79928791]
[1673467309357,6e-05,17568.0,17567.0,2.79943321]
[1673467310671,6e-05,17568.0,17567.0,2.79401504]
[1673467310986,6e-05,17568.0,17567.0,2.02427541]
[1673467311187,6e-05,17568.0,17567.0,1.36412577]
[1673467311428,6e-05,17568.0,17567.0,2.89337911]
[1673467311680,6e-05,17568.0,17567.0,2.32413011]
[1673467311939,6e-05,17568.0,17567.0,2.32427541]
[1673467312958,6e-05,17568.0,17567.0,0.79473147]
[1673467313216,0.564202,17571.0,17567.0,0.79473147]
[1673467313506,0.30015,17570.0,17567.0,0.79473147]
[1673467313769,0.569184,17569.0,17567.0,0.79473147]
[1673467314009,0.869184,17569.0,17568.0,1.34208536]
[1673467314752,0.569184,17569.0,17568.0,1.34208536]
[1673467315003,0.573184,17569.0,17568.0,1.34208536]
[1673467316537,0.577184,17569.0,17568.0,1.48108536]
[1673467316799,0.877184,17569.0,17568.0,1.48108536]
[1673467317303,1.446368,17569.0,17568.0,1.48108536]
[1673467318337,1.446368,17569.0,17568.0,1.47178536]
[1673467319117,1.446368,17569.0,17568.0,1.47317494]
[1673467319381,1.146368,17569.0,17568.0,1.47317494]
[1673467319633,0.577184,17569.0,17568.0,1.47317494]
[1673467319921,0.577184,17569.0,17568.0,1.47178536]
[1673467320133,1.82868209,17569.0,17568.0,0.139]
[1673467320392,2.7602882,17569.0,17568.0,0.139]
[1673467320684,2.915652,17569.0,17568.0,0.139]
[1673467320939,2.915452,17569.0,17568.0,0.139]
[1673467322806,1.146168,17569.0,17568.0,0.139]
[1673467323037,0.576984,17569.0,17568.0,0.139]
[1673467323296,0.56918,17570.0,17567.0,2.61336802]
[1673467323550,0.34873873,17571.0,17569.0,1.33278536]
[1673467323838,0.04873873,17571.0,17569.0,1.99173376]
[1673467324318,0.0216848,17573.0,17571.0,0.04873873]
[1673467324575,0.07022266,17573.0,17572.0,1.33278536]
[1673467324825,0.07022266,17573.0,17572.0,1.33263536]
[1673467325101,0.0216848,17573.0,17572.0,1.99064984]
[1673467325357,0.0216848,17573.0,17572.0,2.58090567]
[1673467325618,0.0216848,17573.0,17572.0,2.56425186]
[1673467325868,0.0216848,17573.0,17572.0,3.13333886]
[1673467326412,0.0736848,17573.0,17572.0,3.13333886]
[1673467326666,0.0216848,17573.0,17572.0,3.13333886]
[1673467326927,0.0736848,17573.0,17572.0,3.14433886]
[1673467327176,0.0736848,17573.0,17572.0,3.13989329]
[1673467327431,0.0216848,17573.0,17572.0,3.42889329]
[1673467327946,0.0256848,17573.0,17572.0,3.92697629]
[1673467328191,0.0040848,17573.0,17572.0,3.92697629]
[1673467328446,0.02144099,17574.0,17573.0,0.5292296]
[1673467328731,0.02144099,17574.0,17573.0,3.39422886]
[1673467329003,0.02144099,17574.0,17573.0,3.03764586]
[1673467329515,0.02144099,17574.0,17573.0,3.04614586]
[1673467329779,0.02544099,17574.0,17573.0,3.34164027]
[1673467330033,0.02544099,17574.0,17573.0,3.94072197]
[1673467330328,4.099e-05,17574.0,17573.0,3.99822327]
[1673467330541,4.099e-05,17574.0,17573.0,4.09561127]
[1673467330796,4.099e-05,17574.0,17573.0,3.73902827]
[1673467331562,4.099e-05,17574.0,17573.0,3.12058027]
[1673467332319,4.099e-05,17574.0,17573.0,3.76685572]
[1673467332611,4.099e-05,17574.0,17573.0,4.12343872]
[1673467333134,4.099e-05,17574.0,17573.0,3.76685572]
[1673467333879,0.23771888,17574.0,17573.0,3.12058027]
[1673467334130,4.099e-05,17574.0,17573.0,3.12058027]
[1673467334395,4.099e-05,17574.0,17573.0,2.55152627]
[1673467334664,4.099e-05,17574.0,17573.0,2.54302627]
[1673467335464,4.099e-05,17574.0,17573.0,1.81547786]
[1673467336818,4.099e-05,17574.0,17573.0,1.1598696]
[1673467337003,4.099e-05,17574.0,17573.0,1.81642017]
[1673467338006,4.099e-05,17574.0,17573.0,2.38547417]
[1673467339025,4.099e-05,17574.0,17573.0,1.81642017]
[1673467339532,4.099e-05,17574.0,17573.0,2.38547417]
[1673467339793,4.099e-05,17574.0,17573.0,0.8598696]
[1673467340062,4.099e-05,17574.0,17573.0,1.1598696]
[1673467340311,2.07629488,17574.0,17573.0,0.1451696]
[1673467340598,2.4385381,17574.0,17573.0,0.1451696]
[1673467340848,2.13861699,17574.0,17573.0,0.1451696]
[1673467341857,2.138576,17574.0,17573.0,0.0081696]
[1673467342112,3.25696627,17574.0,17573.0,0.0111696]
[1673467342366,3.70084287,17574.0,17573.0,0.0111696]
[1673467342625,3.5325526,17574.0,17573.0,0.0111696]
[1673467342892,3.4825526,17574.0,17573.0,0.0081696]